Cogmind - Beta 10.2 *** ADVENTURER MODE // 2021.02.26 @ 00:45:43 Player: ZEUSDEX Result: Self-destructed Performance ------------- Evolutions (2) 1000 Regions Visited (5) 1000 Robots Destroyed (29) 145 Value Destroyed (479) 479 Prototype IDs (0) 0 Alien Tech Used (0) 0 Bonus (0) 0 TOTAL SCORE: 2624 Bonus ------- None Cogmind --------- Core Integrity 510/550 Matter 257/300 Energy 125/125 System Corruption 1% Temperature Cool (10) Movement Core (450) Ox8 Location -8/Materials Parts ------- > --- POWER (1) -------- Light Ion Engine > --- PROPULSION (2) --- (None) > --- UTILITY (6) ------ Large Storage Unit Improved Terrain Scanner Seismic Analyzer Targeting Computer Targeting Computer > --- WEAPON (2) ------- Heavy Assault Rifle Heavy Battle Rifle > --- INVENTORY (10) --- Medium Matter Pod (100) Experimental Sensor Array Hardened Heavy Armor Plating Stasis Trap (100%) Stasis Trap (100%) Stasis Trap (100%) Peak State ------------ > --- POWER ------------ Light Ion Engine > --- PROPULSION ------- Wheel Wheel > --- UTILITY ---------- Large Storage Unit Improved Terrain Scanner Seismic Analyzer Targeting Computer Targeting Computer > --- WEAPON ----------- Heavy Battle Rifle Light Cannon > --- INVENTORY -------- Light Ion Engine Medium Matter Pod Experimental Sensor Array Hardened Heavy Armor Plating Stasis Trap Stasis Trap Stasis Trap [Rating: 16] Favorites ----------- Power Light Ion Engine Engine Light Ion Engine Propulsion Wheel Wheel Wheel Utility Seismic Analyzer Device Improved Terrain Scanner Storage Medium Storage Unit Processor Seismic Analyzer Weapon Light Cannon Energy Gun Medium Laser Ballistic Gun Heavy Battle Rifle Ballistic Cannon Light Cannon Special Weapon Mining Laser Build | -11 -10 -10 -10 -9 -8 ------- Run | Scr Mat Min Exi Min Mat Slots Evolved 4 | . . . . . 4 Power . | . . . . . . Propulsion . | . . . . . . Utility 4 | . . . . . 4 Weapon . | . . . . . . Parts Attached 21 | 7 5 . 1 1 7 Power 2 | 1 . . . . 1 Engine 2 | 1 . . . . 1 Core . | . . . . . . Reactor . | . . . . . . Propulsion 2 | 2 . . . . . Treads . | . . . . . . Leg . | . . . . . . Wheel 2 | 2 . . . . . Hover . | . . . . . . Flight . | . . . . . . Utility 7 | 2 1 . 1 . 3 Device 1 | . . . . . 1 Storage 3 | 1 1 . 1 . . Processor 3 | 1 . . . . 2 Hackware . | . . . . . . Protection . | . . . . . . Artifact . | . . . . . . Weapon 10 | 2 4 . . 1 3 Energy Gun 3 | 1 1 . . 1 . Energy Cannon . | . . . . . . Ballistic Gun 3 | . . . . . 3 Ballistic Cannon 2 | . 2 . . . . Launcher . | . . . . . . Special Weapon 2 | 1 1 . . . . Impact Weapon . | . . . . . . Slashing Weapon . | . . . . . . Piercing Weapon . | . . . . . . Special Melee Weapon . | . . . . . . Unidentified Prototypes . | . . . . . . Parts Lost 8 | . 1 . . 1 6 Power 1 | . . . . . 1 Propulsion 2 | . . . . . 2 Utility . | . . . . . . Weapon 5 | . 1 . . 1 3 Highest Loss Streak 5 | . 1 . . 1 5 Average Slot Usage (%) 96 | . 99 100 100 99 84 Engine 13 | . 14 14 14 14 9 Wheel 25 | . 28 28 28 28 13 Device 1 | . . . . . 9 Storage 13 | . 14 14 14 14 9 Processor 16 | . 14 14 14 14 26 Energy Gun 11 | . 12 14 14 13 4 Ballistic Gun 1 | . . . . . 8 Ballistic Cannon 11 | . 8 14 14 14 4 Special Weapon 1 | . 6 . . . . Naked Turns . | . . . . . . Heaviest Build 27 | 10 16 16 24 24 27 Greatest Support 20 | 20 20 20 20 20 20 Greatest Overweight (x) 2 | . . . 1 1 2 Average Overweight (x) . | . . . . 1 1 Largest Inventory Capacity 10 | 6 8 8 10 10 10 Average Capacity 8 | 5 7 8 8 10 10 Most Carried 10 | 2 5 7 8 10 9 Average Carried 5 | . 4 6 7 8 7 Final Capacity 10 | 6 8 8 10 10 10 Final Carried 10 | 2 4 7 7 10 7 Class Distribution -------------------- 91% | Mutant 8% | Scavenger-Mutant Dominant Class ---------------- Mutant | -10/Materials Mutant | -10/Mines Mutant | -10/Exiles Mutant | -9/Mines Scavenger-Mutant | -8/Materials Resources | -11 -10 -10 -10 -9 -8 ----------- Run | Scr Mat Min Exi Min Mat Matter Collected 621 | 270 152 50 . 31 118 Remotely . | . . . . . . Salvage Created 748 | 253 111 63 . 72 249 Parts 55 | 16 8 11 . 7 13 Haulers Intercepted . | . . . . . . Recyclers Shooed 1 | . . 1 . . . Parts Field Recycled . | . . . . . . Retrieved Matter . | . . . . . . Parts Self-Destructed . | . . . . . . Prevented . | . . . . . . Kills | -11 -10 -10 -10 -9 -8 ------- Run | Scr Mat Min Exi Min Mat Combat Hostiles Destroyed 18 | . 5 3 . 2 8 Guns 11 | . 1 3 . 2 5 Cannons 5 | . 4 . . . 1 AOE 2 | . . . . . 2 Classes Destroyed 6 | 3 2 . . . 1 Worker 2 | 2 . . . . . Tunneler 7 | 6 . 1 . . . Recycler 2 | 1 . . . 1 . Swarmer 12 | . 3 3 . 2 4 Grunt 3 | . 2 . . . 1 Sentry 3 | . . . . . 3 Best Kill Streak 7 | 6 3 3 . 2 7 Combat Bots Only 7 | . 3 3 . 2 7 Max Kills in Single Turn 2 | 1 1 1 . 1 2 Gunslinging . | . . . . . . Exploded 2 | . . . . . 2 Melee . | . . . . . . Uniques/NPCs Destroyed . | . . . . . . Combat | -11 -10 -10 -10 -9 -8 -------- Run | Scr Mat Min Exi Min Mat Damage Taken 561 | . 124 37 . 47 353 Core 59 | . 14 . . 5 40 Absorbed by Shields . | . . . . . . Core Remaining (%) 96 | 100 . . . 92 . Volleys Fired 76 | 31 14 5 . 4 22 Largest 2 | 1 2 2 . 2 2 Hottest 100 | 50 100 85 . 85 75 Shots Fired 115 | 31 25 10 . 8 41 Gun 83 | 31 11 5 . 4 32 Cannon 29 | . 11 5 . 4 9 Launcher . | . . . . . . Special 3 | . 3 . . . . Kinetic 58 | . 11 5 . 4 38 Thermal 52 | 31 14 5 . 2 . Explosive . | . . . . . . Electromagnetic 5 | . . . . 2 3 Robot Hit Streak 25 | 21 17 5 . 6 25 Robot Miss Streak 3 | 1 3 1 . 1 1 Penetration Max . | . . . . . . Secondary Targets 1 | . . . . . 1 Max Gunslinging Chain 1 | . . . . . 1 Shots Hit Robots 85 | 29 14 5 . 5 32 Core Hits 37 | 10 7 4 . 3 13 Critical Hits . | . . . . . . Critical Kills . | . . . . . . Critical Parts Destroyed . | . . . . . . Melee Attacks . | . . . . . . Impact . | . . . . . . Slashing . | . . . . . . Piercing . | . . . . . . Sneak Attacks . | . . . . . . Combat Hostiles . | . . . . . . Follow-up Attacks . | . . . . . . Damage Inflicted 1355 | 350 214 85 . 66 640 Guns 949 | 350 75 48 . 48 428 Cannons 301 | . 139 37 . 18 107 Explosions 105 | . . . . . 105 Melee . | . . . . . . Ramming . | . . . . . . Kinetic 706 | . 139 37 . 18 512 Thermal 602 | 350 75 48 . 24 105 Explosive . | . . . . . . Electromagnetic 47 | . . . . 24 23 Impact . | . . . . . . Slashing . | . . . . . . Piercing . | . . . . . . Highest Corruption 1 | . . . . . 1 Average Corruption 1 | . . . . . 1 Corruption Purged . | . . . . . . Effects 1 | . . . . . 1 Targeting Errors 1 | . . . . . 1 Overload Shots . | . . . . . . Overflow Damage . | . . . . . . Projectiles . | . . . . . . Explosions . | . . . . . . Melee . | . . . . . . Knockbacks 3 | . 1 1 . . 1 Impact . | . . . . . . Kinetic 3 | . 1 1 . . 1 Secondary . | . . . . . . Self-Inflicted Damage . | . . . . . . Shots . | . . . . . . Rammed . | . . . . . . Targets Rammed . | . . . . . . Kicked . | . . . . . . Crushed . | . . . . . . Highest Temperature 156 | 100 156 72 . 48 23 Average Temperature 36 | 36 49 30 . 24 5 Received Heat Transfer 198 | . 54 . . . 144 Siege Activations . | . . . . . . Robots Corrupted . | . . . . . . Combat Hostiles . | . . . . . . Parts Fried . | . . . . . . Impact Corruptions . | . . . . . . Robots Melted . | . . . . . . Combat Hostiles . | . . . . . . Parts Melted 4 | 3 . . . . 1 Heat Transferred 1630 | 1036 222 148 . 74 150 Parts Sabotaged . | . . . . . . Parts Stolen . | . . . . . . Parts Stripped . | . . . . . . Power Chain Reactions 1 | . . . . . 1 Missiles Intercepted . | . . . . . . Alert | -11 -10 -10 -10 -9 -8 ------- Run | Scr Mat Min Exi Min Mat Peak Influence 291 | 45 291 170 . 69 248 Initial 95 | . 25 95 . . 9 Average 100 | 26 129 159 . 45 101 Maximum Alert Level 1 | . 1 . . . 1 Low Security (%) 91 | 100 77 100 . 100 80 Level 1 8 | . 22 . . . 19 Level 2 . | . . . . . . Level 3 . | . . . . . . Level 4 . | . . . . . . Level 5 . | . . . . . . High Security . | . . . . . . Max Security . | . . . . . . Squads Dispatched 4 | . 1 . . . 3 Investigation 3 | . 1 . . . 2 Extermination . | . . . . . . Reinforcement 1 | . . . . . 1 Assault . | . . . . . . Garrison . | . . . . . . Intercept . | . . . . . . Construction Impeded . | . . . . . . Haulers Reinforced . | . . . . . . Stealth | -11 -10 -10 -10 -9 -8 --------- Run | Scr Mat Min Exi Min Mat Distress Signals 1 | . 1 . . . . Communications Jammed . | . . . . . . Distress Signals . | . . . . . . Times Spotted 36 | . 13 3 . 6 14 Peak Tracking Total 10 | . 6 3 . 10 8 Tactical Retreats 3 | . 2 . . 1 . Traps | -11 -10 -10 -10 -9 -8 ------- Run | Scr Mat Min Exi Min Mat Traps Triggered 2 | . . . . . 2 Indirectly . | . . . . . . Trap Hack Attempts . | . . . . . . Triggered . | . . . . . . Disarmed . | . . . . . . Reprogrammed . | . . . . . . Reused . | . . . . . . Traps Extracted . | . . . . . . Installed . | . . . . . . Triggered . | . . . . . . Machines | -11 -10 -10 -10 -9 -8 ---------- Run | Scr Mat Min Exi Min Mat Machines Disabled 3 | . 2 . . 1 . Max in Single Turn 1 | . 1 . . 1 . Machines Sabotaged . | . . . . . . Garrisons Compromised . | . . . . . . Overloaded Fab Kills . | . . . . . . Fab Network Shutdowns . | . . . . . . Hacking | -11 -10 -10 -10 -9 -8 --------- Run | Scr Mat Min Exi Min Mat Machines Accessed 13 | . 7 . 3 . 3 Terminals 10 | . 7 . . . 3 Fabricators . | . . . . . . Repair Stations . | . . . . . . Recycling Units . | . . . . . . Scanalyzers . | . . . . . . Garrison Access . | . . . . . . Total Hacks 56 | . 21 . 26 . 9 Successful 47 | . 13 . 26 . 8 Failed 9 | . 8 . . . 1 Catastrophic 2 | . 2 . . . . Database Lockouts . | . . . . . . Manual 30 | . 21 . . . 9 Terminals 30 | . 21 . . . 9 Fabricators . | . . . . . . Repair Stations . | . . . . . . Recycling Units . | . . . . . . Scanalyzers . | . . . . . . Garrison Access . | . . . . . . Terminal Hacks 32 | . 3 . 26 . 3 Record 26 | . . . 26 . . Part Schematic 1 | . . . . . 1 Terminal Index 3 | . 2 . . . 1 Patrol Status 2 | . 1 . . . 1 Fabricator Hacks . | . . . . . . Repair Station Hacks . | . . . . . . Recycling Unit Hacks . | . . . . . . Scanalyzer . | . . . . . . Garrison Access Hacks . | . . . . . . Unauthorized Hacks 15 | . 10 . . . 5 Terminals 15 | . 10 . . . 5 Track 4 | . 2 . . . 2 Botnet 10 | . 7 . . . 3 Disrupt 1 | . 1 . . . . Fabricators . | . . . . . . Repair Stations . | . . . . . . Recycling Units . | . . . . . . Scanalyzers . | . . . . . . Garrison Access . | . . . . . . Data Cores Recovered . | . . . . . . Used . | . . . . . . Hacking Detections 10 | . 7 . . . 3 Full Trace Events 3 | . 2 . . . 1 Feedback Events . | . . . . . . Feedback Blocked . | . . . . . . Robot Schematics Acquired . | . . . . . . Robots Built . | . . . . . . Matter . | . . . . . . Time . | . . . . . . Total Robot Build Rating . | . . . . . . Part Schematics Acquired 1 | . . . . . 1 Parts Built . | . . . . . . Matter . | . . . . . . Time . | . . . . . . Total Part Build Rating . | . . . . . . Parts Repaired . | . . . . . . Time . | . . . . . . Parts Recycled . | . . . . . . Recycled Matter . | . . . . . . Retrieved Matter . | . . . . . . Retrieved Components . | . . . . . . Parts Scanalyzed . | . . . . . . Part Schematics Acquired . | . . . . . . Parts Damaged . | . . . . . . Bothacking | -11 -10 -10 -10 -9 -8 ------------ Run | Scr Mat Min Exi Min Mat Used RIF Installer . | . . . . . . Robots Hacked . | . . . . . . Non-combat . | . . . . . . Combat . | . . . . . . Robot Hacks Applied . | . . . . . . Relay Couplers Released . | . . . . . . Robots Rewired . | . . . . . . Allies Hacked . | . . . . . . Hacks Repelled . | . . . . . . Allies | -11 -10 -10 -10 -9 -8 -------- Run | Scr Mat Min Exi Min Mat Total Allies 3 | . . 1 . 2 . Largest Group 2 | . . 1 . 2 . Highest-Rated Group 45 | . . 31 . 45 . Highest-Rated Ally 31 | . . 31 . 31 . Total Orders . | . . . . . . Ally Attacks 4 | . . . . 4 . Total Damage 21 | . . . . 21 . Kills 1 | . . . . 1 . Allies Corrupted . | . . . . . . Allies Melted . | . . . . . . Intel | -11 -10 -10 -10 -9 -8 ------- Run | Scr Mat Min Exi Min Mat Robot Analysis Total . | . . . . . . Derelict Logs Recovered 1 | . . . . 1 . Drone Launches . | . . . . . . Drone Recoveries . | . . . . . . Exploration | -11 -10 -10 -10 -9 -8 ------------- Run | Scr Mat Min Exi Min Mat Turns Passed 1634 | 220 276 341 326 214 257 Spaces Moved 1531 | 86 260 370 401 218 196 Core 10 | 10 . . . . . Treads . | . . . . . . Legs . | . . . . . . Wheels 1521 | 76 260 370 401 218 196 Hover . | . . . . . . Flight . | . . . . . . Fastest Speed 50 | 50 80 80 80 90 90 Average Speed 83 | 76 80 80 80 90 93 Slowest Speed 100 | 80 80 80 90 90 100 Overloaded Moves . | . . . . . . Propulsion Burnouts . | . . . . . . Robots Hopped . | . . . . . . Cave-ins Triggered . | . . . . . . Exploration Rate (%) 47 | 5 55 55 87 58 24 Regions Visited 5 Branch Regions 3 Pre-discovered Areas . | . . . . . . Known Exits Taken . | . . . . . . Unknown Exits Taken 5 | 1 1 1 1 1 . Scrap Searched 3 | . . 2 . 1 . Spaces Dug 4 | . 3 . . . 1 Terrain Destroyed 13 | . 3 . . . 10 Melee . | . . . . . . Projectile 6 | . 3 . . . 3 AOE 7 | . . . . . 7 Terrain Rammed . | . . . . . . Walls Destroyed . | . . . . . . Machines Disabled . | . . . . . . Actions | -11 -10 -10 -10 -9 -8 --------- Run | Scr Mat Min Exi Min Mat Total 1761 | 205 295 404 402 228 227 Wait 121 | 80 13 27 . . 1 Move 1526 | 85 259 369 400 217 196 Hop . | . . . . . . Pick Up 14 | 2 3 3 . 5 1 Fast Attach 9 | 7 . . . . 2 Attach 7 | . 1 . . 1 5 Detach . | . . . . . . Swap 5 | . 4 . 1 . . Drop 3 | . 1 . 1 1 . Fire 76 | 31 14 5 . 4 22 Melee . | . . . . . . Ram . | . . . . . . Kick . | . . . . . . Crush . | . . . . . . Escape Stasis . | . . . . . . Rewire . | . . . . . . Trap . | . . . . . . Miscellaneous . | . . . . . . Route ------- -11/Scrapyard -10/Materials (discovered 2 exits: [*Min x2]) -10/Mines -10/Exiles -9/Mines -8/Materials (discovered 2 exits: [*Sto x2]) History --------- Turn | Location | Event 11 | -11/Scrapyard | Discovered new exit (range 16) 221 | -11/Scrapyard | Entered Materials 316 | -10/Materials | Build established: Mutant 323 | -10/Materials | Discovered new exit (range 15) 492 | -10/Materials | Discovered new exit (range 7) 497 | -10/Materials | Entered Mines 505 | -10/Mines | Met a Derelict bent on vengeance 553 | -10/Mines | Received a Mining Laser from a helpful Derelict 671 | -10/Mines | A weapon hastily lodged in a ceiling crevice suddenly fell to the ground 834 | -10/Mines | Deemed a non-threat by the Exiles lab entrance 834 | -10/Mines | Discovered new exit (range 5) 838 | -10/Mines | Entered Exiles 859 | -10/Exiles | Met 8R-AWN 871 | -10/Exiles | Met EX-HEX 901 | -10/Exiles | Met EX-BIN 984 | -10/Exiles | Met EX-DEC 1015 | -10/Exiles | Visited The Gauntlet 1156 | -10/Exiles | Discovered new exit (range 11) 1164 | -10/Exiles | Entered Mines 1187 | -9/Mines | Learned Materials garrison access intel 1194 | -9/Mines | Found a damaged Exp. Sensor Array with a note attached 1195 | -9/Mines | Found Prototype Device 1236 | -9/Mines | Assembled infested the area 1241 | -9/Mines | Assisted by a Guerilla fighting off Assembled 1307 | -9/Mines | Found a hidden stash of uninstalled traps 1368 | -9/Mines | Discovered new exit (range 10) 1378 | -9/Mines | Entered Materials 1378 | -8/Materials | Evolved 4 slots: Utility x4 1379 | -8/Materials | Loaded intel: 1 garrison access location 1408 | -8/Materials | Discovered new exit (range 14) 1484 | -8/Materials | Discovered new exit (range 6) 1549 | -8/Materials | Destroyed 7 combat bots 1554 | -8/Materials | Lost 5 parts (1p1n3w) 1635 | -8/Materials | Self-destructed Last Messages --------------- >>Trojan(Track) Trojan loaded successfully. Testing... Tracking enabled and active. 01580_ ALERT: Suspicious activity at Terminal M002. Dispatching Investigation squad. 01601_ U-05 Engineer lays Concrete. 01611_ O-24 Administrator: "IFF HANDSHAKE FAILED. SECURING TERMINAL." 01618_ ALERT: Hostiles spotted, dispatching reinforcements to Terminal M009. 01621_ Triggered Alarm Trap. 01621_ An alarm sounds. 01621_ ALERT: Alarm triggered, dispatching investigation squad. 01626_ U-05 Engineer lays Concrete. 01629_ Wheel destroyed. 01629_ U-05 Engineer lays Concrete. 01629_ G-50 Soldier destroyed. 01632_ System corrupted: Hvy. Assault Rifle targeting data glitched. Map ----- +----------------------------------------------------+ | ??????????????????????????????????????????? | | ??????????????????????????????????????????? | | ??????????????????????????????????????????? | | ??????????????????????????????????????????? | | ??????????????????????????????????????????? | | ??????????????????????????????????????????? | | ??????????????????????????????????????????? | | ??????????????????????????????????????????? | | ??????????????????????????????????????????? | | ??????????????????????????????????????????? | | ??????????????????##??#???????????????????? | | ??????????????????????????????????????????? | | ????????????#??????????????????????""?????? | | ?????????????#?????#??? ""? #???????G"????? | | ?????????????#???????#??"???#??????""?????? | | ????????????????#?????????????????????????? | | ?????????#???????#????? ??????????????????? | | ??????????????????????????????????????????? | | ???????????????#???#??????????????????????? | | ????????????????#?????????????? ??????????? | | ???????#???#??????????????????????????????? | | ?????????????????##???????????????????????? | | #??#??????#######?????????????????????????? | | ?#????????# ############# ????????? | | ?????#????# = g %! ????????? | | ??? ??????# @ g ????????? | | ????? ????# g ????????? | | ??????????# u###############???????????? | | ??????????## g##??#?#????????????????????? | | ???? ?? ?"?# #?#?????????#?#????????????? | | ??? ??????## #??#######?????????????????? | | ?????? ?? ?# ##???#==]]??##????"????????? | | ??????????## #????#==] ????##???????????? | | ????? ? ??# #????# ??????????????????? | | ??????+##### ###### #??#?##?#???? ??????? | | ????# #?#????#??? ????????? | | ????# #?#???????#?????????? | | ?#??# #??#?#??#???????????? | | ????# ########### #??#?#??#???##??????? | | ????# ????####???# ##?#???#????????????? | | ????# ?#??????##?# ##????##????????????? | | ????#?? ??????????# u#???????#????##?????? | | ??????????????"???# #?#???#?#????#??????? | | ??????????"?? ?"??# ###########?????###?? | | ??????????????""" # # ###??????#?? | | ????? ? ???? ?# # """" ##??#??????# | | ??????? ?????? ? # # """" ###????????? | | ?????????? ? ?? # # """" #??##??????? | | ??????????? ??????# # # ??? ?? ??? | | ??????? ???????#### # #?#? ?"????? | +----------------------------------------------------+ Best States ------------- Heat Dissipation 31 Energy Generation 10 Energy Capacity 125 Matter Stores 300 Matter Capacity 300 Sight Range 16 Terrain Scan Range 16 Terrain Scan Density 60 Resistance: KI 20 Resistance: TH 20 Resistance: EX 20 Resistance: EM 20 Resistance: I 20 Resistance: S 20 Resistance: P 20 Evasion (%) 44 Targeting Accuracy 10 Offensive Hacking 10 Item Schematics ----------------- Hacking Suite | -8/Materials | Hacked Robot Schematics ------------------ None Fabricated ------------ Nothing Alien Tech Used ----------------- None Achievements -------------- Slippery One Challenges ------------ None Game ------ Seed LatentLobotomyCorpse Manual? 0 Play Time 00:15:24 Cumulative 40.4 hours Start 2021.02.26 @ 00:32:35 End 2021.02.26 @ 00:45:43 Sessions 1 Manual Loads 0 Difficulty Adventurer Special Mode None Game No. 70 Rogue 55 Adventurer 15 Explorer 0 Win Type - Total 0 Types 0/0/0/0/0/0/0/0/0 Lore% 29 Gallery% 47 Achievement% 33 Wizard Run 0 Options --------- ASCII 0 Keyboard 1 Movement Numpad Keybinds 0 Fullscreen 1 Font 20/Cog Map View 66x50 Tactical HUD 1 Map Filters NONE Filters NONE Steam 1 RUN: 441cf23e-46c2-4424-b1d8-fbaa276d5a83